bitfinex/quotes_ETHUSD_20240709
["timestamp","ask_amount","ask_price","bid_price","bid_amount"]
[1720523615872,3.54641172,3082.6,3081.4,3.24524]
[1720523616040,0.55,3082.5,3081.4,3.24524]
[1720523616377,3.55,3082.8,3081.6,2.823]
[1720523616663,3.0,3082.8,3081.6,2.823]
[1720523616877,0.5646,3082.7,3081.6,2.823]
[1720523617081,0.5646,3082.7,3081.6,5.2828]
[1720523617377,0.5646,3082.7,3081.6,8.52786]
[1720523617871,0.5646,3082.7,3081.6,2.823]
[1720523618177,0.5646,3082.7,3081.3,3.24532]
[1720523618178,0.55,3082.6,3081.3,3.24532]
[1720523618373,0.90646,3082.6,3081.4,3.0]
[1720523618572,0.0811163,3082.5,3081.2,2.823]
[1720523618772,0.55,3082.4,3081.2,2.823]
[1720523619069,0.0811242,3082.3,3081.2,2.823]
[1720523619449,1.29411242,3082.2,3081.2,2.823]
[1720523619650,1.37523695,3082.2,3081.2,2.823]
[1720523621654,1.29411242,3082.2,3081.2,2.823]
[1720523621952,1.29411242,3082.2,3081.1,5.51018]
[1720523621953,7.36,3082.4,3081.6,2.823]
[1720523622485,3.35646,3082.6,3081.6,2.823]
[1720523622486,0.35646,3082.6,3081.6,2.823]
[1720523622995,0.43757435,3082.6,3081.6,2.823]
[1720523623155,0.35646,3082.6,3081.6,2.823]
[1720523623349,0.392106,3082.5,3081.6,2.823]
[1720523624462,0.392106,3082.5,3081.2,2.823]
[1720523624463,3.61454049,3082.4,3081.2,2.823]
[1720523624663,3.0402,3082.4,3081.2,2.823]
[1720523624870,0.35134222,3082.3,3081.2,2.823]
[1720523625075,2.4902,3082.4,3081.2,2.823]
[1720523625374,0.392106,3082.5,3081.5,3.24515]
[1720523625767,0.392106,3082.5,3081.6,2.823]
[1720523626109,0.33930951,3082.6,3082.0,6.06763]
[1720523626460,14.7422,3083.3,3082.0,2.823]
[1720523626656,0.736,3082.7,3082.0,2.823]
[1720523627753,0.736,3082.7,3081.6,6.068]
[1720523627953,0.736,3082.7,3081.6,6.06799]
[1720523628187,1.12416462,3082.6,3081.6,6.06799]
[1720523628365,0.92201646,3082.6,3081.6,6.06799]
[1720523628566,3.0,3083.2,3081.7,3.24494]
[1720523628792,1.67409802,3082.7,3081.6,6.06799]
[1720523629015,1.75520898,3082.7,3081.6,2.823]
[1720523629215,1.12418616,3082.6,3081.6,2.823]
[1720523629398,1.12418616,3082.5,3081.6,2.823]
[1720523629716,1.12418616,3082.5,3081.6,6.06796]
[1720523629893,0.55,3082.7,3081.7,3.24496]
[1720523630094,1.12417696,3082.6,3081.7,3.24496]
[1720523630423,1.12417696,3082.6,3081.3,5.4251]
[1720523630424,3.0,3083.2,3082.0,6.06761]
[1720523630582,2.2522,3083.3,3082.3,3.24432]
[1720523630918,1.12398726,3083.2,3082.3,3.24432]
[1720523631094,1.12398726,3083.1,3082.2,3.24443]
[1720523631299,1.46160599,3083.1,3082.0,2.823]
[1720523631483,1.12398726,3083.0,3082.0,2.823]
[1720523632781,1.12398726,3083.0,3082.2,3.24438]
[1720523633022,7.36,3083.4,3082.2,3.24438]
[1720523633023,4.12398726,3083.3,3082.4,2.823]
[1720523633176,7.36,3083.4,3082.4,2.823]
[1720523633381,1.1239057,3083.2,3082.4,2.823]
[1720523633679,1.1239057,3083.1,3082.4,2.823]
[1720523633982,1.1239057,3083.0,3082.4,2.823]
[1720523634180,1.1239057,3082.9,3082.4,2.823]
[1720523634404,7.36,3083.4,3082.4,6.06721]
[1720523634680,1.12387721,3083.3,3082.5,3.24406]
[1720523634882,1.12387721,3083.2,3082.5,3.24406]
[1720523635092,1.12387721,3083.3,3082.5,3.24406]
[1720523635393,1.12387721,3083.2,3082.5,3.24406]
[1720523635594,1.12387721,3083.1,3082.5,3.24406]
[1720523635794,1.12387721,3083.0,3082.5,3.24406]
[1720523636002,7.36,3083.4,3082.6,3.24401]
[1720523636204,1.12384914,3083.3,3082.6,3.24401]
[1720523636543,7.36,3083.4,3082.6,3.24401]
[1720523636689,1.12380583,3083.2,3082.6,3.24401]
[1720523637059,1.12380583,3083.1,3082.7,3.24389]
[1720523637336,7.36,3083.4,3082.7,3.24389]
[1720523637534,1.12380595,3083.3,3082.8,3.24378]
[1720523637707,1.12380595,3083.2,3082.8,3.24378]
[1720523637908,7.36,3083.8,3082.9,3.24368]
[1720523638131,1.1237448,3083.5,3082.9,3.24368]
[1720523638308,7.36,3083.8,3082.9,3.24368]
[1720523638309,1.1237448,3083.4,3082.9,3.24368]
[1720523638629,7.36,3083.8,3082.8,2.823]
[1720523638929,1.12373803,3083.5,3082.8,2.823]
[1720523639230,1.20482025,3083.4,3082.4,2.823]
[1720523639394,1.12373803,3083.3,3082.4,2.823]
[1720523639738,0.43143053,3083.2,3082.4,2.823]
[1720523639897,1.12396968,3083.1,3082.4,2.823]
[1720523640096,1.12396968,3083.0,3082.4,2.823]
[1720523640336,1.12396968,3082.9,3082.4,2.823]
[1720523640549,1.12396968,3082.8,3082.1,2.4392]
[1720523640842,1.12396968,3083.1,3082.0,2.823]
[1720523641010,1.12396968,3083.0,3082.1,3.24448]
[1720523641223,1.12396968,3083.0,3082.0,6.34986]
[1720523641515,0.0810998,3082.9,3082.0,2.823]
[1720523641716,1.67396968,3082.8,3081.6,5.2161]
[1720523642015,3.52948431,3082.7,3081.6,2.823]
[1720523642213,1.53221791,3082.6,3081.6,2.823]
[1720523642440,1.75538537,3082.5,3081.6,2.823]
[1720523642730,1.12426948,3082.4,3081.6,2.823]
[1720523642916,0.63112306,3082.3,3081.2,2.823]
[1720523643116,1.38093176,3082.2,3081.2,2.823]
[1720523643344,1.12426948,3082.1,3081.2,2.823]
[1720523643638,0.55,3082.0,3081.2,2.823]
[1720523643795,1.12426948,3081.9,3081.2,2.823]
[1720523645519,1.67434827,3081.8,3081.2,2.823]
[1720523645728,2.4155,3081.6,3081.2,2.823]
[1720523646041,2.4155,3081.6,3080.8,2.823]
[1720523646042,1.12441525,3081.5,3080.8,2.823]
[1720523646247,0.55,3081.8,3080.8,2.823]
[1720523646451,1.12447616,3081.7,3080.9,3.24579]
[1720523646619,9.7755,3082.0,3081.2,2.823]
[1720523646620,7.36,3082.0,3081.2,2.823]
[1720523647924,0.08112871,3081.9,3080.8,2.823]
[1720523648118,0.55,3081.9,3080.8,2.823]
[1720523648324,0.08113688,3081.8,3080.8,2.823]
[1720523648524,0.55,3081.7,3080.8,2.823]
[1720523648727,2.46904051,3081.6,3080.8,2.823]
[1720523648931,0.85190405,3081.5,3080.4,2.823]
[1720523649115,3.85190405,3081.5,3080.4,2.823]
[1720523650616,3.55,3081.5,3080.4,2.823]
[1720523650820,3.55,3081.5,3080.4,6.06927]
[1720523651034,3.0,3081.5,3080.5,3.24619]
[1720523651357,7.36,3081.6,3080.6,3.24611]
[1720523651551,7.36,3081.6,3080.7,0.324611]
[1720523651850,0.08113862,3081.5,3080.4,2.823]
[1720523652057,7.36,3081.6,3080.4,2.823]
[1720523652346,7.36,3081.6,3080.4,6.06927]
[1720523652555,7.36,3081.6,3080.5,3.24615]
[1720523653115,0.08113862,3081.5,3080.4,2.823]
[1720523653616,0.08113862,3081.5,3080.4,6.0693]
[1720523654133,0.08113862,3081.5,3080.4,2.823]
[1720523654317,0.55,3081.4,3080.4,2.823]
[1720523654615,0.08115048,3081.3,3080.4,2.823]
[1720523654809,0.55,3081.2,3080.4,2.823]
[1720523655027,2.41375268,3081.1,3080.4,2.823]
[1720523655270,2.41375268,3081.1,3079.9,2.4564]
[1720523655271,0.29637527,3081.0,3080.0,2.823]
[1720523655412,0.08115358,3080.9,3080.0,2.823]
[1720523656043,0.37752657,3081.0,3080.0,6.06969]
[1720523656246,0.0811513,3081.0,3080.0,6.06968]
[1720523656913,0.0811513,3081.0,3080.0,2.823]
[1720523657242,0.55,3080.9,3080.0,2.823]
[1720523657942,2.3326,3081.1,3080.0,2.823]
[1720523658111,8.14326,3081.0,3080.0,6.35203]
[1720523658309,7.36,3081.0,3080.0,6.35203]
[1720523658628,7.36,3081.0,3079.5,0.68075314]
[1720523658629,2.2886,3080.8,3079.5,0.68075314]
[1720523658942,0.08117595,3080.7,3079.5,0.68075314]
[1720523659150,0.63117595,3080.7,3079.5,0.68075314]
[1720523659736,0.63117595,3080.7,3079.4,3.24732]
[1720523659937,0.29197759,3080.6,3079.4,3.24732]
[1720523660224,0.55,3080.5,3079.5,3.0]
[1720523660427,0.55,3080.5,3079.5,6.24727]
[1720523660627,2.2886,3080.8,3079.7,6.07006]
[1720523660830,2.2886,3080.8,3079.8,3.24694]
[1720523661858,2.2886,3080.8,3079.8,6.49381]
[1720523662435,2.2886,3080.8,3079.9,3.24685]
[1720523663664,2.4005,3081.2,3080.2,3.24653]
[1720523663868,2.4005,3081.2,3080.2,6.49306]
[1720523664364,2.4005,3081.2,3080.3,3.2464]
[1720523665062,12.49,3081.5,3080.5,6.06921]
[1720523665358,12.49,3081.5,3080.5,2.823]
[1720523665761,12.49,3081.5,3080.1,6.06955]
[1720523665926,0.08114821,3080.9,3080.1,2.823]
[1720523666130,0.98416482,3080.8,3079.8,3.24686]
[1720523666327,9.7605,3081.0,3079.9,3.24677]
[1720523666759,9.7605,3081.0,3080.0,3.24669]
[1720523667271,9.7605,3081.0,3080.2,3.24651]
[1720523667272,7.36,3081.0,3080.2,3.24651]
[1720523667480,7.36,3081.0,3080.1,8.54505]
[1720523667785,9.7228,3081.0,3080.1,6.06955]
[1720523667937,9.7228,3081.0,3080.1,2.823]
[1720523668141,0.08115013,3080.9,3080.1,2.823]
[1720523668341,1.06154514,3080.9,3080.1,2.823]
[1720523669168,0.55,3080.8,3079.7,2.823]
[1720523669438,0.08117225,3080.7,3079.4,3.24738]
[1720523669775,0.55,3080.8,3079.8,3.24695]
[1720523671039,0.55,3080.8,3079.8,6.49384]
[1720523671570,0.55,3080.8,3079.3,3.24746]
[1720523671571,9.7228,3081.0,3080.1,2.823]
[1720523671783,0.55,3080.9,3080.1,2.823]
[1720523671978,7.36,3081.0,3080.3,3.2464]
[1720523672349,7.36,3081.0,3080.2,3.24643]
[1720523672550,7.36,3081.0,3080.1,2.823]
[1720523672751,0.736,3080.9,3080.1,2.823]
[1720523672953,7.36,3081.0,3080.2,3.24652]
[1720523673186,7.36,3081.0,3080.2,6.49297]
[1720523673780,7.36,3081.0,3080.3,3.24642]
[1720523674861,0.33943091,3080.9,3080.3,3.24642]
[1720523675545,0.33943091,3080.9,3080.2,3.24653]
[1720523676162,0.33943091,3080.9,3080.2,3.24648]
[1720523676575,0.33943091,3080.9,3080.1,2.823]
[1720523676964,1.12475721,3080.8,3080.1,2.823]
[1720523677162,2.24951449,3080.8,3080.1,2.823]
[1720523677459,1.12475728,3080.7,3080.1,2.823]
[1720523679572,1.12475728,3080.7,3079.7,2.823]
[1720523679779,3.59471866,3080.7,3079.7,6.07006]
[1720523679989,1.59670487,3080.6,3079.7,2.823]
[1720523680195,1.12475728,3080.5,3079.7,2.823]
[1720523680375,1.12487392,3080.4,3079.7,2.823]
[1720523680554,1.12487392,3080.3,3079.7,2.823]
[1720523680759,1.49211688,3080.5,3079.6,3.0]
[1720523680959,1.12487392,3080.4,3079.5,3.0]
[1720523681158,1.12487392,3080.4,3079.5,6.24721]
[1720523681665,0.08116818,3080.3,3079.5,3.0]
[1720523681847,0.08116818,3080.3,3079.4,3.24733]
[1720523681848,1.12487392,3080.2,3079.4,6.49464]
[1720523682048,1.12487392,3080.1,3079.3,2.823]
[1720523682380,0.28607476,3080.5,3079.7,2.823]
[1720523682381,1.12487392,3080.0,3079.7,2.823]
[1720523682583,9.672,3080.6,3079.7,2.823]
[1720523682899,1.6748019,3080.5,3079.7,2.823]
[1720523683050,1.1248019,3080.4,3079.7,2.823]
[1720523683250,1.1248019,3080.4,3079.8,6.49383]
[1720523683469,1.1248019,3080.5,3079.9,3.2468]
[1720523683692,1.12474175,3080.4,3079.9,3.2468]
[1720523683864,1.12474175,3080.3,3079.9,3.2468]
[1720523684068,1.12474175,3080.2,3079.9,3.2468]
[1720523684391,7.36,3080.6,3079.9,3.2468]
[1720523684694,1.12475523,3080.5,3079.9,3.2468]
[1720523684893,1.12475523,3080.4,3079.9,3.2468]
[1720523685094,7.36,3080.6,3079.9,3.2468]
[1720523685095,1.12475523,3080.5,3079.9,3.2468]
[1720523685467,1.12475523,3080.5,3080.2,3.24649]
[1720523685792,1.12475523,3080.5,3080.4,3.24633]
[1720523685965,0.33943091,3080.9,3080.4,3.24633]
[1720523686172,1.12459458,3080.7,3080.4,3.24633]
[1720523686370,1.12459458,3080.6,3080.4,3.24633]
[1720523686690,0.33943091,3080.9,3080.4,3.24633]
[1720523686895,1.12459375,3080.7,3080.4,3.24633]
[1720523687094,1.12459375,3080.6,3080.4,3.24633]
[1720523687279,1.12459375,3080.7,3080.4,3.24633]
[1720523688397,1.12459375,3080.7,3080.4,6.4926]
[1720523690480,0.33943091,3080.9,3080.4,3.24627]
[1720523690680,0.33943091,3080.9,3080.5,3.24621]
[1720523690887,2.54159103,3080.7,3080.5,3.24621]
[1720523691174,0.33943091,3080.9,3080.5,3.24621]
[1720523691369,1.12457962,3080.7,3080.6,6.49218]
[1720523691599,0.33943091,3080.9,3080.7,3.24601]
[1720523691984,0.33943091,3080.9,3080.7,6.49202]
[1720523692304,2.54163692,3080.8,3080.7,6.49202]
[1720523692528,2.54163692,3080.8,3080.6,3.24611]
[1720523692675,1.41687971,3080.7,3080.6,3.24611]
[1720523693010,1.41687971,3080.7,3080.5,2.823]
[1720523693469,1.12475721,3080.8,3080.6,3.24612]
[1720523693678,1.12475721,3080.8,3080.7,3.24601]
[1720523693902,2.54167011,3080.8,3080.7,6.49202]
[1720523695106,1.12475721,3080.8,3080.7,6.49202]
[1720523697218,0.33943091,3080.9,3080.8,6.49182]
[1720523697891,0.33943091,3080.9,3080.8,8.83212]
[1720523698579,0.33943091,3080.9,3080.8,12.07803]
[1720523699790,0.33943091,3080.9,3080.8,15.07803]
[1720523700819,7.36,3081.8,3081.3,3.24531]
[1720523701012,2.4411,3082.0,3081.3,3.24531]
[1720523701013,2.54097177,3081.7,3081.3,3.24531]
[1720523701213,2.4411,3082.0,3081.4,3.24522]
[1720523701419,0.33936538,3081.7,3081.3,3.24531]
[1720523701621,1.41658321,3081.6,3081.4,3.24524]
[1720523701911,0.33936538,3081.7,3081.1,6.06854]
[1720523702116,2.54103584,3081.6,3081.1,6.0685]
[1720523702317,2.54113901,3081.5,3080.8,3.0]
[1720523702618,0.33936538,3081.7,3080.9,6.24579]
[1720523702784,2.54108115,3081.6,3080.9,6.24579]
[1720523702979,1.41671707,3081.5,3080.9,9.49154]
[1720523703198,0.33936538,3081.7,3080.9,9.49154]
[1720523703382,0.33936538,3081.7,3081.0,3.24569]
[1720523703383,2.54108488,3081.6,3081.0,3.24569]
[1720523703580,0.33936538,3081.7,3081.0,3.24569]
[1720523703822,2.54108369,3081.6,3081.0,3.24569]
[1720523704023,0.33936538,3081.7,3080.9,6.24575]
[1720523704261,2.54116482,3081.6,3080.9,6.24574]
[1720523704561,0.33936538,3081.7,3080.9,6.24574]
[1720523704562,2.54116482,3081.5,3080.9,6.24574]
[1720523704702,0.33936538,3081.7,3080.9,3.0]
[1720523704703,1.41673055,3081.4,3080.9,3.0]
[1720523705038,0.33936538,3081.7,3080.8,3.0]
[1720523705259,3.31123541,3081.6,3080.8,6.2459]
[1720523705403,2.54129887,3081.5,3080.8,6.2459]
[1720523705607,2.54129887,3081.4,3080.7,2.823]
[1720523705855,2.54129887,3081.4,3080.7,6.06894]
[1720523705856,2.54129887,3081.3,3080.7,6.06894]
[1720523706159,2.54129887,3081.2,3080.7,6.06894]
[1720523706366,0.08113527,3081.5,3080.7,2.823]
[1720523706568,0.08113527,3081.5,3080.3,2.823]
[1720523706569,2.4987,3081.2,3080.3,2.823]
[1720523706843,2.79132878,3081.1,3080.3,2.823]
[1720523707018,2.54145878,3081.0,3080.3,2.823]
[1720523707222,2.54145878,3080.9,3080.3,2.823]
[1720523707421,2.54145878,3080.8,3080.3,2.823]
[1720523707623,0.33101877,3081.1,3080.3,2.823]
[1720523707856,2.54179301,3081.0,3080.3,2.823]
[1720523708109,2.54179301,3080.9,3080.3,2.823]
[1720523708313,2.54179301,3080.8,3080.3,2.823]
[1720523708502,0.24987,3081.1,3080.3,2.823]
[1720523708709,2.54178722,3081.0,3080.3,6.06943]
[1720523708929,2.54178722,3080.9,3080.3,6.06943]
[1720523709132,2.4987,3081.2,3080.3,6.06943]
[1720523709331,2.62281135,3081.1,3080.3,2.823]
[1720523709649,3.13507385,3081.0,3079.9,2.823]
[1720523709849,4.11321933,3080.9,3079.9,2.823]
[1720523710035,2.54177291,3080.8,3080.3,2.823]
[1720523710236,2.54177291,3080.7,3080.3,2.823]
[1720523710438,1.12465765,3080.7,3080.3,2.823]
[1720523710751,2.4987,3081.2,3080.4,3.24625]
[1720523710921,2.54165223,3081.1,3080.7,2.823]
[1720523711123,7.36,3081.4,3080.7,2.823]
[1720523711316,2.54136462,3081.3,3080.7,2.823]
[1720523711510,2.54136462,3081.2,3080.7,2.823]
[1720523711717,2.54136462,3081.1,3080.7,2.823]
[1720523712046,2.54136462,3081.0,3080.7,2.823]
[1720523712249,2.54136462,3081.0,3080.3,3.24636]
[1720523712250,2.54136462,3080.9,3080.3,2.823]
[1720523712456,2.79550108,3080.8,3080.3,2.823]
[1720523712623,0.55,3081.2,3080.3,2.823]
[1720523712817,0.736,3081.3,3080.3,2.823]
[1720523712818,1.12469258,3080.7,3080.3,2.823]
[1720523713023,0.736,3081.3,3080.3,6.06935]
[1720523713230,2.09141671,3081.2,3080.3,2.823]
[1720523713432,4.11334264,3081.1,3080.3,2.823]
[1720523713731,2.54175806,3081.0,3080.3,2.823]
[1720523713944,2.54175806,3080.9,3080.3,2.823]
[1720523714247,2.54175806,3080.8,3080.3,2.823]
[1720523714451,2.54175806,3080.7,3079.9,2.823]
[1720523714663,2.54175806,3080.7,3079.5,6.07027]
[1720523714664,2.54175806,3080.6,3079.5,6.07027]
[1720523714812,1.49824883,3080.5,3079.5,6.07027]
[1720523715013,2.54175806,3080.4,3079.5,6.07027]
[1720523715237,2.54175806,3080.3,3079.5,6.07027]
[1720523715441,2.54175806,3080.2,3079.5,2.823]
[1720523715660,0.08116656,3080.5,3078.5,3.99639939]
[1720523715661,2.331,3080.0,3078.5,3.99639939]
[1720523715814,2.54175806,3079.9,3078.9,2.823]
[1720523716017,2.54274792,3079.8,3079.1,3.24761]
[1720523716254,7.36,3080.2,3079.3,2.823]
[1720523716255,1.41757557,3079.7,3079.3,2.823]
[1720523716558,7.36,3080.2,3079.4,3.24728]
[1720523716866,2.54241905,3080.1,3079.4,3.24728]
[1720523717019,1.41745487,3080.0,3079.4,3.24728]
[1720523717214,1.12496418,3079.9,3079.4,3.24728]
[1720523717429,1.12496418,3079.9,3079.3,5.1795]
[1720523717724,1.41752852,3079.8,3079.3,2.823]
[1720523717924,0.81717323,3080.1,3079.3,2.823]
[1720523718117,2.54262484,3080.0,3079.3,2.823]
[1720523718317,2.54262484,3079.9,3079.3,2.823]
[1720523718558,7.36,3080.2,3079.3,2.823]
[1720523718854,2.54254682,3080.1,3079.4,3.24729]
[1720523719070,2.54254682,3080.0,3079.4,3.24729]
[1720523719291,7.36,3080.2,3079.4,3.24729]
[1720523719447,2.54250767,3080.1,3079.5,3.24726]
[1720523719766,2.54254652,3080.0,3079.3,2.823]
[1720523719970,1.41753701,3079.9,3079.3,2.823]
[1720523720139,0.08117496,3080.4,3079.3,2.823]
[1720523720344,1.12504234,3080.3,3079.3,2.823]
[1720523720564,2.54259652,3080.2,3079.3,2.823]
[1720523720767,2.54259652,3080.1,3079.4,3.24738]
[1720523720969,1.41755418,3080.0,3079.4,6.4947]
[1720523721172,1.41755418,3080.0,3079.5,3.24724]
[1720523721355,9.6784,3080.6,3079.5,3.24724]
[1720523721557,2.54249274,3080.5,3079.6,3.24715]
[1720523721751,2.54249274,3080.4,3079.7,2.823]
[1720523721949,2.54249274,3080.3,3079.7,2.823]
[1720523722280,7.36,3080.6,3079.7,2.823]
[1720523722440,2.5422345,3080.5,3079.7,2.823]
[1720523722635,2.54222595,3080.4,3079.7,2.823]
[1720523722944,7.36,3080.6,3079.7,2.823]
[1720523723145,2.54222455,3080.5,3079.7,2.823]
[1720523723340,2.54222455,3080.4,3079.7,2.823]
[1720523723670,7.36,3080.6,3079.7,2.823]
[1720523723837,2.54223884,3080.5,3079.7,2.823]
[1720523724038,1.4173544,3080.4,3079.7,2.823]
[1720523724358,7.36,3080.6,3079.7,2.823]
[1720523724559,2.54226591,3080.5,3079.7,2.823]
[1720523724767,2.54226591,3080.4,3079.7,2.823]
[1720523724947,7.36,3080.6,3079.7,2.823]
[1720523725256,2.6234774,3080.5,3079.7,2.823]
[1720523725465,4.09066108,3080.4,3079.3,2.823]
[1720523725634,2.54231334,3080.3,3079.4,3.0]
[1720523725836,2.54231334,3080.3,3079.4,6.24737]
[1720523725837,1.12491726,3080.3,3079.4,6.24737]
[1720523726154,1.41747079,3080.2,3079.4,6.24737]
[1720523726336,1.54834774,3080.4,3079.4,6.24737]
[1720523726533,2.54246676,3080.3,3079.4,3.24737]
[1720523726759,2.54246676,3080.2,3079.4,3.24737]
[1720523726963,2.54254024,3080.1,3079.4,3.24737]
[1720523727166,0.08117091,3080.3,3079.4,3.24737]
[1720523727353,2.54253382,3080.2,3079.4,3.24737]
[1720523727566,1.41751886,3080.1,3079.4,3.24737]
[1720523727744,0.16295187,3080.3,3079.4,3.24737]
[1720523727939,1.41749362,3080.2,3079.4,6.49468]
[1720523728158,1.54834774,3080.4,3079.4,6.49468]
[1720523728353,2.54236427,3080.3,3079.4,3.24731]
[1720523728556,2.62353515,3080.2,3079.3,2.823]
[1720523728752,2.54236427,3080.1,3079.3,2.823]
[1720523728958,3.85754774,3080.4,3079.1,3.24769]
[1720523728959,2.62354341,3080.0,3079.1,3.24769]
[1720523729168,1.41742433,3079.9,3079.1,3.24769]
[1720523729373,0.08117907,3080.2,3079.1,3.24769]
[1720523729676,3.09266468,3080.1,3079.1,3.24769]
[1720523729881,2.94122813,3080.0,3079.0,3.24774]
[1720523730069,2.54266468,3079.9,3078.9,2.823]
[1720523730402,0.31738438,3080.0,3079.0,6.49553]
[1720523730584,2.54268392,3079.9,3079.0,6.49553]
[1720523730741,0.55,3080.1,3079.0,3.24773]
[1720523730946,2.54261755,3080.0,3079.0,3.24773]
[1720523731165,2.54261755,3079.9,3079.0,3.24773]
[1720523731372,1.12505201,3079.8,3079.0,3.24773]
[1720523731566,1.12505201,3080.0,3079.0,3.24773]
[1720523731766,1.41768263,3079.9,3079.0,3.24773]
[1720523731981,1.12505201,3079.8,3079.0,3.24773]
[1720523732195,1.12505201,3079.8,3078.9,2.823]
[1720523732486,0.29444282,3079.9,3078.9,2.823]
[1720523732784,2.54301531,3079.8,3078.8,2.2762]
[1720523732978,2.62420051,3079.7,3078.6,3.2482]
[1720523733184,2.54301531,3079.6,3078.6,6.49634]
[1720523733388,1.12522801,3079.5,3078.6,6.49634]
[1720523733595,1.12522801,3079.5,3078.6,3.24814]
[1720523734351,3.48071712,3079.5,3078.5,2.823]
[1720523734691,3.09314748,3079.4,3078.1,2.823]
[1720523734895,2.62434707,3079.3,3078.1,2.823]
[1720523735054,0.92431372,3079.4,3078.1,2.823]
[1720523735055,3.17434974,3079.2,3078.1,2.823]
[1720523735421,1.44266298,3079.1,3078.1,2.823]
[1720523735589,1.20643036,3079.0,3078.1,2.823]
[1720523735801,1.12546986,3078.9,3078.1,6.07174]
[1720523735982,7.36,3079.2,3078.1,6.07174]
[1720523736285,1.12544857,3079.1,3078.2,3.24864]
[1720523736487,7.36,3079.2,3078.2,3.24858]
[1720523736791,7.36,3079.2,3078.6,3.24822]
[1720523737111,7.36,3079.2,3078.7,3.24805]
[1720523738505,7.36,3079.2,3079.0,6.49548]
[1720523738790,7.36,3079.9,3079.0,3.24773]
[1720523738977,1.12510795,3079.8,3079.0,3.24773]
[1720523739183,1.12510795,3079.7,3079.0,3.24773]
[1720523739383,1.12510795,3079.8,3079.0,3.24773]
[1720523739688,1.12510795,3079.8,3079.1,3.24763]
[1720523740588,7.36,3079.9,3079.4,3.24737]
[1720523742502,7.36,3079.9,3079.5,3.24727]
[1720523743185,7.36,3079.9,3079.6,3.24717]
[1720523744255,7.36,3079.9,3079.6,3.24712]
[1720523744604,10.09753212,3081.0,3079.8,3.2469]
[1720523744894,2.54218066,3080.9,3079.9,3.24678]
[1720523745102,1.1248587,3080.8,3079.9,3.24678]
[1720523745273,1.1248587,3080.7,3079.9,3.24678]
[1720523745503,1.1248049,3080.6,3079.9,3.24678]
[1720523745684,9.7511,3081.0,3080.0,3.24674]
[1720523745685,1.1248049,3080.5,3080.0,3.24674]
[1720523745882,1.1248049,3080.4,3080.0,3.24674]
[1720523746086,1.1248049,3080.7,3080.0,3.24674]
[1720523746300,1.1248049,3080.6,3080.0,3.24674]
[1720523746524,1.01322023,3080.8,3080.0,3.24674]
[1720523746525,1.1248049,3080.5,3080.0,3.24674]
[1720523746701,0.40132202,3080.7,3080.0,5.52624]
[1720523746702,1.1248049,3080.4,3080.0,5.52624]
[1720523747027,3.40132202,3080.7,3080.1,3.24662]
[1720523747233,1.12475723,3080.6,3080.3,3.2464]
[1720523747418,7.36,3081.0,3080.3,3.2464]
[1720523747621,1.12468089,3080.9,3080.3,3.2464]
[1720523747788,1.12468089,3080.8,3080.3,3.2464]
[1720523747984,7.36,3081.0,3080.3,3.2464]
[1720523748240,1.12462798,3080.9,3080.3,3.2464]
[1720523748433,7.36,3081.0,3080.3,3.2464]
[1720523748607,1.12462739,3080.9,3080.3,3.2464]
[1720523748791,7.36,3081.0,3080.3,3.2464]
[1720523749098,8.096,3081.0,3080.3,3.2464]
[1720523749306,1.12469015,3080.9,3080.3,3.2464]
[1720523749628,1.12469015,3080.8,3080.4,3.2463]
[1720523749828,7.36,3081.3,3080.4,3.2463]
[1720523749829,1.12469015,3081.2,3080.5,3.24621]
[1720523750028,1.41706403,3081.1,3080.5,3.24621]
[1720523750325,1.12469015,3081.0,3080.5,3.24621]
[1720523750695,10.36,3081.3,3080.5,3.24621]
[1720523750898,2.54154307,3081.2,3080.5,3.24621]
[1720523751226,2.54150604,3081.1,3080.8,3.2459]
[1720523751386,10.36,3081.3,3080.8,3.2459]
[1720523751591,1.12455834,3081.2,3080.6,6.06902]
[1720523751888,2.54159711,3081.1,3080.6,2.823]
[1720523752201,2.54178295,3081.0,3080.6,2.823]
[1720523752531,5.7441,3080.8,3079.0,5.66541]
[1720523752730,5.7441,3080.8,3079.0,2.4177]
[1720523752731,8.49170876,3080.7,3079.0,2.4177]
[1720523753041,5.383,3080.5,3078.9,2.823]
[1720523753208,4.11395259,3080.4,3078.9,2.823]
[1720523753402,0.54307529,3080.5,3079.0,6.49545]
[1720523753403,3.09180392,3080.3,3079.0,6.49545]
[1720523753607,5.54180392,3080.2,3079.0,6.49545]
[1720523753825,3.09180392,3080.1,3079.0,6.49545]
[1720523754130,5.54180392,3080.0,3079.0,6.49545]
[1720523754335,2.54180392,3079.9,3079.0,6.49545]
[1720523754535,3.0,3080.0,3079.0,6.49545]
[1720523754828,2.54260125,3079.9,3079.0,3.24771]
[1720523755036,0.355,3080.0,3079.0,3.24771]
[1720523755208,2.54262274,3079.9,3079.0,3.24771]
[1720523755407,0.355,3080.0,3079.0,3.24771]
[1720523755611,2.54266046,3079.9,3079.0,3.24771]
[1720523755810,0.355,3080.0,3079.0,3.24771]
[1720523756022,2.5426727,3079.9,3079.0,3.24771]
[1720523756329,2.54280739,3079.8,3078.9,2.823]
[1720523756529,1.67195212,3079.7,3078.9,2.823]
[1720523756754,2.54280739,3079.6,3078.9,2.823]
[1720523756904,2.62415783,3079.5,3078.9,2.823]
[1720523757109,0.08118522,3079.5,3078.9,2.823]